Cogmind - Beta 17 @@@ ROGUE MODE // 2026.07.15 @ 23:37:36 Player: 3.14 Result: Self-destructed Performance ------------- Evolutions (3) 1500 Regions Visited (8) 1600 Robots Destroyed (158) 790 Value Destroyed (6810) 6810 Prototype IDs (6) 120 Alien Tech Used (0) 0 Bonus (14006) 14006 TOTAL SCORE: 24826 Bonus ------- High Alert Combat Kills 1451 Follower Combat Kills 505 Prayed to X0-1V1 5000 Major X0-1V1 Interference 4950 Entered Garrisons 600 Used RIF Installer 1500 Cogmind --------- Core Integrity 802/900 Matter 15/300 Energy 900/900 System Corruption 5% Temperature Cool (0) Movement Treading (240) Ox2 Location -7/Garrison Parts ------- > --- POWER (1) -------- (None) > --- PROPULSION (3) --- Light Treads Light Treads Light Treads > --- UTILITY (7) ------ Improved Heat Sink Huge Storage Unit Seismic Detector Advanced Targeting Computer Improved Utility Shielding Hardened Heavy Armor Plating > --- WEAPON (3) ------- Heavy Assault Rifle Heavy Mass Driver > --- INVENTORY (25) --- Light Nuclear Core Light Treads Improved Heat Sink Hardened Heavy Armor Plating Hardened Heavy Armor Plating Hardened Heavy Armor Plating Heavy Insulated Plating Relay Coupler [NC] (41) Relay Coupler [Sentry] (25) Relay Coupler [Behemoth] (10) Relay Coupler [Behemoth] (99) Heavy Assault Rifle Heavy Mass Driver Heavy Mass Driver Rocket Array Rocket Array Remote Datajack Scythe Peak State ------------ > --- POWER ------------ Micro Nuclear Core > --- PROPULSION ------- Light Treads Light Treads Light Treads > --- UTILITY ---------- Improved Heat Sink Huge Storage Unit Advanced Targeting Computer Improved Utility Shielding Hardened Heavy Armor Plating X0-1V1's Piety Tracker > --- WEAPON ----------- Improved Assault Rifle Heavy Mass Driver > --- INVENTORY -------- Light Nuclear Core Carbon-fiber Leg Improved Heat Sink Seismic Detector Hardened Heavy Armor Plating Hardened Heavy Armor Plating Hardened Heavy Armor Plating Hardened Heavy Armor Plating Heavy Insulated Plating Relay Coupler [NC] Relay Coupler [Sentry] Heavy Assault Rifle Heavy Assault Rifle Heavy Mass Driver Rocket Array Rocket Array Remote Datajack Scythe [Rating: 62] Favorites ----------- Power Micro Nuclear Core Engine Light Ion Engine Power Core Micro Nuclear Core Propulsion Light Treads Treads Light Treads Leg Aluminum Leg Utility Huge Storage Unit Device Improved Heat Sink Storage Huge Storage Unit Processor Advanced Targeting Computer Protection Hardened Medium Armor Plating Weapon Beam Cannon Energy Gun Precision Beam Rifle Energy Cannon Beam Cannon Ballistic Gun Improved Assault Rifle Ballistic Cannon Assault Cannon Launcher Subdweller Shrapnel Launcher Special Weapon Mining Laser Slashing Weapon Scythe Build | -11 -10 -10 -8 -8 -8 -8 -7 -7 ------- Run | Yrd Mat Sub Mat Gar Mat Gar Fac Gar Slots Evolved 6 | . . . 4 . . . 2 . Power . | . . . . . . . . . Propulsion 2 | . . . 2 . . . . . Utility 4 | . . . 2 . . . 2 . Weapon . | . . . . . . . . . Parts Attached 89 | 7 8 7 23 5 9 17 7 6 Power 8 | 1 1 2 2 . . 1 . 1 Engine 4 | 1 1 2 . . . . . . Core 4 | . . . 2 . . 1 . 1 Reactor . | . . . . . . . . . Propulsion 26 | 2 . 1 9 2 3 7 . 2 Treads 22 | 2 . 1 5 2 3 7 . 2 Leg 4 | . . . 4 . . . . . Wheel . | . . . . . . . . . Hover . | . . . . . . . . . Flight . | . . . . . . . . . Utility 26 | 2 4 . 8 . 3 4 4 1 Device 11 | 1 2 . 3 . 1 2 2 . Storage 4 | 1 2 . . . 1 . . . Processor 2 | . . . 2 . . . . . Hackware . | . . . . . . . . . Protection 9 | . . . 3 . 1 2 2 1 Artifact . | . . . . . . . . . Weapon 29 | 2 3 4 4 3 3 5 3 2 Energy Gun 2 | 1 . . 1 . . . . . Energy Cannon 5 | . 1 1 . . 2 1 . . Ballistic Gun 13 | 1 1 2 2 2 1 2 1 1 Ballistic Cannon 4 | . . . 1 . . 2 . 1 Launcher 3 | . . 1 . 1 . . 1 . Special Weapon 1 | . 1 . . . . . . . Impact Weapon . | . . . . . . . . . Slashing Weapon 1 | . . . . . . . 1 . Piercing Weapon . | . . . . . . . . . Special Melee Weapon . | . . . . . . . . . Unidentified Prototypes 5 | . 1 . 1 . 1 1 1 . Parts Lost 14 | . . 2 3 . . 6 . 3 Power 2 | . . . . . . 1 . 1 Propulsion 7 | . . 1 1 . . 3 . 2 Utility 2 | . . . 1 . . 1 . . Weapon 3 | . . 1 1 . . 1 . . Highest Loss Streak 2 | . . 1 1 . . 2 . 1 To Critical Strikes . | . . . . . . . . . Average Backups 19 | 4 10 18 21 24 24 22 20 18 Power 1 | . 1 1 1 1 1 . 1 1 Propulsion 1 | 1 2 2 1 2 1 1 1 . Utility 8 | . 3 6 8 9 9 11 10 9 Weapon 7 | 1 3 6 9 11 10 7 6 6 Tool/Special . | . . . . . . . . . Unused Backups 57 | . . . 13 5 7 7 5 20 Power 3 | . . . 2 . . . . 1 Propulsion 3 | . . . 1 . . . . 2 Utility 27 | . . . 3 3 1 4 4 12 Weapon 21 | . . . 7 2 6 1 1 4 Tool/Special 3 | . . . . . . 2 . 1 Average Slot Usage (%) 96 | . 99 99 94 100 99 99 91 87 Engine 4 | . 14 13 . . . . . . Core 5 | . . . 8 8 8 8 7 6 Treads 26 | . 27 27 17 33 33 32 22 20 Leg 3 | . . . 15 . . . . . Device 10 | . 14 13 8 8 8 8 13 14 Storage 9 | . 14 14 8 8 8 8 7 7 Processor 5 | . . . 8 8 8 8 7 7 Protection 6 | . . . 7 8 7 8 11 14 Energy Gun 2 | . 7 . 3 7 1 . . . Energy Cannon 7 | . 5 20 4 . 12 6 . . Ballistic Gun 9 | . 13 6 5 12 9 9 13 9 Ballistic Cannon 3 | . . . 3 4 . 8 7 6 Peak Build Rating 62 | 7 20 22 34 35 36 36 55 62 Average Rating 27 | 6 7 12 25 34 35 34 52 52 On Entrance 25 | . 7 20 11 34 35 36 34 55 Avg Prop Armor Cover (%) 10 | . . . 10 . . . . . Naked Turns . | . . . . . . . . . Heaviest Build 133 | 11 90 98 112 109 107 108 123 133 Greatest Support 80 | 40 40 40 80 80 80 80 80 60 Greatest Overweight (x) 4 | . 2 2 4 1 1 1 2 3 Average Overweight (x) 1 | . . 2 1 1 1 1 1 2 Largest Inventory Capacity 25 | 8 25 25 25 25 25 25 25 25 Average Capacity 22 | 7 12 25 25 25 25 25 25 25 Most Carried 25 | 7 16 22 25 25 25 25 25 25 Average Carried 20 | 4 10 18 21 24 24 24 24 24 Final Capacity 25 | 8 25 25 25 25 25 25 25 25 Final Carried 25 | 7 16 20 25 25 25 24 25 24 Class Distribution -------------------- 43% | Mutant 28% | Scavenger-Gunner 10% | Bothacker-Tank 7% | Bothacker-Gunner 6% | Scavenger-Mutant Dominant Class ---------------- Mutant | -10/Materials Mutant | -10/Subcaves Mutant | -8/Materials Scavenger-Gunner | -8/Garrison Scavenger-Gunner | -8/Materials Scavenger-Gunner | -8/Garrison Bothacker-Tank | -7/Factory Bothacker-Tank | -7/Garrison Resources | -11 -10 -10 -8 -8 -8 -8 -7 -7 ----------- Run | Yrd Mat Sub Mat Gar Mat Gar Fac Gar Matter Collected 3563 | 296 128 193 574 389 270 1052 219 442 Remotely 203 | 126 77 . . . . . . . Salvage Created 5495 | 203 428 339 1187 444 1045 1082 204 563 Parts 318 | 20 27 18 67 29 58 59 11 29 Haulers Intercepted 8 | . 2 . 4 . 2 . . . Recyclers Shooed 7 | . 3 . 2 . . . 2 . Parts Field Recycled . | . . . . . . . . . Retrieved Matter . | . . . . . . . . . Parts Self-Destructed 14 | . . 14 . . . . . . Prevented . | . . . . . . . . . Parts Restored . | . . . . . . . . . Kills | -11 -10 -10 -8 -8 -8 -8 -7 -7 ------- Run | Yrd Mat Sub Mat Gar Mat Gar Fac Gar Combat Hostiles Destroyed 122 | . 12 8 24 17 17 26 2 16 Guns 52 | . 10 . 14 9 6 8 . 5 Cannons 61 | . 2 8 6 3 11 18 2 11 AOE 8 | . . . 3 5 . . . . Classes Destroyed 17 | 2 5 3 2 . 2 2 . 1 Worker 5 | . 1 . . . 4 . . . Builder 1 | . . . 1 . . . . . Tunneler 7 | 7 . . . . . . . . Hauler 8 | . 2 . 4 . 2 . . . Recycler 7 | 1 . . 3 . 1 . 2 . Operator 3 | . 1 . 1 . . . 1 . Turret 2 | . . 2 . . . . . . Watcher 2 | . . . . . 1 1 . . Swarmer 33 | . 7 2 12 6 3 2 1 . Cutter 2 | . . . . . . . . 2 Grunt 47 | . 5 . 6 10 4 11 1 10 Brawler 3 | . . . . . . 3 . . Duelist 1 | . . . 1 . . . . . Sentry 18 | . . 1 6 1 5 3 . 2 Hunter 6 | . . . . . 5 1 . . Programmer 8 | . . . . . . 6 . 2 Subdweller 5 | . . 5 . . . . . . Best Kill Streak 7 | 2 3 2 5 7 7 4 1 6 Combat Bots Only 7 | . 2 2 6 7 5 4 1 6 Max Kills in Single Turn 3 | 1 1 1 3 2 2 1 1 2 Gunslinging . | . . . . . . . . . Exploded 2 | . . . 2 2 . . . . Melee . | . . . . . . . . . Uniques/NPCs Destroyed . | . . . . . . . . . Combat | -11 -10 -10 -8 -8 -8 -8 -7 -7 -------- Run | Yrd Mat Sub Mat Gar Mat Gar Fac Gar Hostile Shots Fired 771 | . 76 87 92 71 62 177 11 195 Missed 231 | . 25 31 28 27 21 37 2 60 Hits 540 | . 51 56 64 44 41 140 9 135 Melee 1 | . . . . . . 1 . . Projectile 539 | . 51 56 64 44 41 139 9 135 AOE 3 | . . 1 . . . . . 2 Critical Strikes 18 | . 1 1 1 1 2 10 . 2 Damage Taken 6885 | . 452 792 804 585 620 2169 137 1326 Core 595 | . 42 118 8 73 65 191 . 98 Absorbed by Shields 57 | . . . . . . . . 57 Redirected to Shielding 3 | . . . . . . . . 3 Regen/Repaired (Parts) 407 | . 199 . 176 . 32 . . . Core Remaining (%) 87 | 100 . 73 . . . 89 . . Volleys Fired 438 | 26 61 35 79 37 38 99 11 52 Largest 3 | 2 2 2 3 3 3 3 3 3 Hottest 164 | 60 100 120 121 121 164 164 83 88 Shots Fired 969 | 52 118 70 152 81 114 244 31 107 Gun 558 | 52 104 19 75 65 58 104 21 60 Cannon 393 | . 11 48 72 9 56 140 10 47 Launcher 10 | . . 1 2 7 . . . . Special 8 | . 3 2 3 . . . . . Kinetic 607 | 26 58 20 86 52 48 179 31 107 Thermal 362 | 26 60 50 66 29 66 65 . . Explosive . | . . . . . . . . . Electromagnetic . | . . . . . . . . . Robot Hit Streak 19 | 9 6 19 18 9 10 15 7 17 Robot Miss Streak 6 | 3 5 5 4 6 3 4 2 4 Penetration Max 1 | . . . . . 1 1 . . Secondary Targets 3 | . 2 . . 1 . . . . Max Gunslinging Chain 1 | . 1 . . 1 . . . . Shots Hit Robots 580 | 36 68 46 82 47 81 137 19 64 Core Hits 252 | 12 25 17 41 28 43 49 8 29 Critical Kills 2 | . . . . . . 1 . 1 Critical Parts Destroyed 2 | . . . . . . 2 . . Critical Strikes 21 | . . 1 5 4 . 5 1 5 Burn 5 | . . . 3 2 . . . . Destroy 5 | . . 1 . . . 3 . 1 Blast 11 | . . . 2 2 . 2 1 4 Melee Attacks 1 | . . . . . . . 1 . Impact . | . . . . . . . . . Slashing 1 | . . . . . . . 1 . Piercing . | . . . . . . . . . Sneak Attacks . | . . . . . . . . . Combat Hostiles . | . . . . . . . . . Follow-up Attacks . | . . . . . . . . . Damage Inflicted 12744 | 353 744 868 1973 1599 1693 3137 385 1992 Guns 5354 | 353 588 148 824 554 831 1222 177 657 Cannons 6000 | . 142 629 785 170 842 1911 192 1329 Explosions 1216 | . . 91 250 875 . . . . Melee . | . . . . . . . . . Ramming 174 | . 14 . 114 . 20 4 16 6 Kinetic 8532 | 129 295 239 1136 1397 672 2393 369 1902 Thermal 4038 | 224 435 629 723 202 1001 740 . 84 Explosive . | . . . . . . . . . Electromagnetic . | . . . . . . . . . Impact . | . . . . . . . . . Slashing . | . . . . . . . . . Piercing . | . . . . . . . . . Highest Corruption 19 | . . 11 12 . . 19 . 5 Average Corruption 11 | . . 11 11 . . 12 . 4 Corruption Purged . | . . . . . . . . . Corruption Blocked . | . . . . . . . . . Effects 91 | . . 17 3 . . 63 . 8 Message Errors 20 | . . 4 1 . . 13 . 2 Matter Fused 24 | . . 5 . . . 17 . 2 Heat Flow Errors 12 | . . 2 . . . 7 . 3 Energy Discharges 9 | . . 1 1 . . 7 . . Parts Rejected 3 | . . 1 . . . 2 . . Parts Fused 1 | . . . . . . 1 . . Data Loss (minor) 10 | . . 1 . . . 8 . 1 Data Loss (major) 2 | . . 1 . . . 1 . . Misfires 5 | . . 2 . . . 3 . . Alerts 1 | . . . . . . 1 . . Misdirections 1 | . . . . . . 1 . . Weapon Failures 3 | . . . 1 . . 2 . . Overload Shots . | . . . . . . . . . Overflow Damage 318 | . 8 . 33 12 . 69 . 196 Projectiles 295 | . 8 . 22 . . 69 . 196 Explosions 23 | . . . 11 12 . . . . Melee . | . . . . . . . . . Knockbacks 25 | . . . 5 2 . 11 1 6 Impact 2 | . . . 2 . . . . . Kinetic 20 | . . . 3 2 . 9 1 5 Secondary 3 | . . . . . . 2 . 1 Self-Inflicted Damage 60 | . . . 23 37 . . . . Shots 2 | . . . 1 1 . . . . Rammed 16 | . 4 . 9 . 1 . 1 1 Targets Rammed 20 | . 5 . 10 . 1 1 2 1 Kicked 1 | . . . 1 . . . . . Crushed 3 | . 1 . . . . 1 1 . Highest Temperature 387 | 40 70 169 219 150 318 387 39 253 Average Temperature 72 | 16 23 75 58 34 87 133 15 42 Received Heat Transfer 1906 | . 84 153 297 243 162 450 72 445 Effects 7 | . . . . . . 7 . . Energy Bleed 2 | . . . . . . 2 . . Interference 4 | . . . . . . 4 . . Matter Decay 1 | . . . . . . 1 . . Siege Activations . | . . . . . . . . . Martial Activations . | . . . . . . . . . Shielding Activations . | . . . . . . . . . Robots Disrupted . | . . . . . . . . . Combat Hostiles . | . . . . . . . . . Robots Corrupted . | . . . . . . . . . Combat Hostiles . | . . . . . . . . . Parts Fried . | . . . . . . . . . Impact Corruptions . | . . . . . . . . . Robots Melted 2 | . . . 2 . . . . . Combat Hostiles 1 | . . . 1 . . . . . Parts Melted 11 | . . 2 2 1 3 3 . . Heat Transferred 8281 | 500 971 1321 1776 592 1850 1221 . 50 Parts Sabotaged . | . . . . . . . . . Parts Stolen . | . . . . . . . . . Parts Stripped . | . . . . . . . . . Power Chain Reactions . | . . . . . . . . . Alert | -11 -10 -10 -8 -8 -8 -8 -7 -7 ------- Run | Yrd Mat Sub Mat Gar Mat Gar Fac Gar Maximum Alert Level 4 | . . . 2 3 3 4 3 3 Low Security (%) 33 | 100 100 . 58 . . . . . Level 1 9 | . . . 37 6 . . . . Level 2 22 | . . . 3 51 30 30 22 55 Level 3 26 | . . . . 42 69 34 77 44 Level 4 7 | . . . . . . 34 . . Level 5 . | . . . . . . . . . High Security . | . . . . . . . . . Max Security . | . . . . . . . . . Peak Influence 1549 | 5 129 . 637 1004 865 1549 812 935 Initial 812 | . . . 33 398 489 551 812 441 Average 515 | . 48 . 173 722 710 986 733 716 Influence Increases 4944 | 40 433 160 1302 626 686 1058 125 514 Destroy 0b10 Robot/C 2405 | . 240 100 660 340 315 435 75 240 Destroy 0b10 Robot/NC 182 | 40 20 . 65 . 37 8 12 . Destroy Leader 376 | . 44 . 156 20 116 24 8 8 Allied During Kill 116 | . . . 82 4 . 14 16 . Successful Hack 59 | . 21 . 12 14 . 12 . . Disable Machine 75 | . . . 45 15 15 . . . Anti-Garrison Action 554 | . . . . 100 . 264 . 190 Destroy Structure 245 | . 3 . 51 73 3 61 2 52 Lose Combat Pursuer 516 | . 105 60 15 60 . 240 12 24 Miscellaneous 416 | . . . 216 . 200 . . . Influence Decreases 4019 | 40 433 96 753 235 841 358 1043 220 Entered New Map 1986 | . . . 31 215 515 298 737 190 Time Decay 1633 | 40 433 86 502 . 326 . 246 . Lost Part 130 | . . 10 30 . . 60 . 30 Lost Ally 120 | . . . 40 20 . . 60 . Purge Threat 150 | . . . 150 . . . . . Squads Dispatched 11 | . 2 . 4 . 2 . 3 . Investigation 4 | . . . 2 . 2 . . . Extermination . | . . . . . . . . . Reinforcement 6 | . 2 . 2 . . . 2 . Assault 1 | . . . . . . . 1 . Garrison . | . . . . . . . . . Intercept . | . . . . . . . . . Searches Triggered . | . . . . . . . . . Construction Impeded . | . . . . . . . . . Haulers Reinforced . | . . . . . . . . . Active Scanning Responses . | . . . . . . . . . Cargo Convoy Interrupts . | . . . . . . . . . Stealth | -11 -10 -10 -8 -8 -8 -8 -7 -7 --------- Run | Yrd Mat Sub Mat Gar Mat Gar Fac Gar Distress Signals 14 | . 1 . 6 . 1 5 1 . Communications Jammed . | . . . . . . . . . Distress Signals . | . . . . . . . . . Times Spotted 193 | . 33 12 44 20 21 37 7 19 Peak Tracking Total 7 | . 4 2 5 6 5 7 3 6 Tactical Retreats 26 | . 5 2 1 3 . 13 1 1 Traps | -11 -10 -10 -8 -8 -8 -8 -7 -7 ------- Run | Yrd Mat Sub Mat Gar Mat Gar Fac Gar Traps Triggered 15 | . 1 2 . . . 5 . 7 Indirectly . | . . . . . . . . . Trap Hack Attempts . | . . . . . . . . . Triggered . | . . . . . . . . . Disarmed . | . . . . . . . . . Reprogrammed . | . . . . . . . . . Reused . | . . . . . . . . . Traps Extracted . | . . . . . . . . . Installed . | . . . . . . . . . Triggered . | . . . . . . . . . Machines | -11 -10 -10 -8 -8 -8 -8 -7 -7 ---------- Run | Yrd Mat Sub Mat Gar Mat Gar Fac Gar Machines Disabled 19 | . . 2 3 4 1 3 . 6 Max in Single Turn 2 | . . 2 2 2 1 1 . 2 Garrison Relay 9 | . . . . 1 . 3 . 5 Phase Generator 2 | . . . . 1 . . . 1 Machines Repaired . | . . . . . . . . . Machines Dismantled . | . . . . . . . . . Machines Sabotaged . | . . . . . . . . . Overloaded Fab Kills . | . . . . . . . . . Hacking | -11 -10 -10 -8 -8 -8 -8 -7 -7 --------- Run | Yrd Mat Sub Mat Gar Mat Gar Fac Gar Machines Accessed 26 | . 8 . 9 2 2 2 2 1 Terminals 17 | . 7 . 5 2 . 2 . 1 Fabricators 1 | . . . . . . . 1 . Repair Stations 3 | . 1 . 1 . 1 . . . Recycling Units . | . . . . . . . . . Scanalyzers 2 | . . . 2 . . . . . Garrison Access 3 | . . . 1 . 1 . 1 . Total Hacks 52 | . 19 . 19 3 2 3 4 2 Successful 30 | . 12 . 12 1 2 2 1 . Failed 21 | . 7 . 6 2 . 1 3 2 Catastrophic 3 | . . . 1 1 . . 1 . Database Lockouts 1 | . . . 1 . . . . . Manual 21 | . 15 . 5 . 1 . . . Terminals 32 | . 15 . 9 3 . 3 . 2 Fabricators 3 | . . . . . . . 3 . Repair Stations 9 | . 4 . 4 . 1 . . . Recycling Units . | . . . . . . . . . Scanalyzers 5 | . . . 5 . . . . . Garrison Access 3 | . . . 1 . 1 . 1 . Terminal Hacks 8 | . 1 . 4 1 . 2 . . Branch Access Points 1 | . . . 1 . . . . . Emergency Access Points 1 | . . . . . . 1 . . Unreport Threat 1 | . . . 1 . . . . . Locate Traps 2 | . 1 . 1 . . . . . Recall Investigation 1 | . . . 1 . . . . . Garrison Registry 1 | . . . . 1 . . . . Security Stations 1 | . . . . . . 1 . . Fabricator Hacks . | . . . . . . . . . Repair Station Hacks 8 | . 4 . 4 . . . . . Scan Component 4 | . 2 . 2 . . . . . Repair 4 | . 2 . 2 . . . . . Recycling Unit Hacks . | . . . . . . . . . Scanalyzer 3 | . . . 3 . . . . . Insert Component 1 | . . . 1 . . . . . Analyze 1 | . . . 1 . . . . . Retrieve Study 1 | . . . 1 . . . . . Garrison Access Hacks 3 | . . . 1 . 1 . 1 . Unlock Access 3 | . . . 1 . 1 . 1 . Unauthorized Hacks 8 | . 7 . . . 1 . . . Terminals 7 | . 7 . . . . . . . Botnet 1 | . 1 . . . . . . . Skim 6 | . 6 . . . . . . . Fabricators . | . . . . . . . . . Repair Stations 1 | . . . . . 1 . . . Patch 1 | . . . . . 1 . . . Recycling Units . | . . . . . . . . . Scanalyzers . | . . . . . . . . . Garrison Access . | . . . . . . . . . Data Cores Recovered . | . . . . . . . . . Used . | . . . . . . . . . Hacking Detections 18 | . 7 . 6 2 . 1 1 1 Full Trace Events 1 | . . . 1 . . . . . Feedback Events . | . . . . . . . . . Feedback Blocked . | . . . . . . . . . Robot Schematics Acquired . | . . . . . . . . . Robots Built . | . . . . . . . . . Authchips . | . . . . . . . . . Time . | . . . . . . . . . Total Robot Build Rating . | . . . . . . . . . Part Schematics Acquired 1 | . . . 1 . . . . . Parts Built . | . . . . . . . . . Authchips . | . . . . . . . . . Time . | . . . . . . . . . Total Part Build Rating . | . . . . . . . . . Part Studies Acquired 1 | . . . 1 . . . . . Parts Repaired 4 | . 2 . 2 . . . . . Time 110 | . 52 . 58 . . . . . Parts Recycled . | . . . . . . . . . Recycled Matter . | . . . . . . . . . Retrieved Matter . | . . . . . . . . . Retrieved Components . | . . . . . . . . . Parts Scanalyzed 1 | . . . 1 . . . . . Part Schematics Acquired 1 | . . . 1 . . . . . Parts Damaged . | . . . . . . . . . Bothacking | -11 -10 -10 -8 -8 -8 -8 -7 -7 ------------ Run | Yrd Mat Sub Mat Gar Mat Gar Fac Gar Used RIF Installer 3 | . . . . 1 . 1 . 1 Threat Obfuscator 1 | . . . . . 1 . . . Structural Interface 1 | . . . . . . . . 1 Program Shield 1 | . . . . . . 1 . . Robots Hacked . | . . . . . . . . . Non-combat . | . . . . . . . . . Combat . | . . . . . . . . . Robot Hacks Applied . | . . . . . . . . . Relay Couplers Released 40 | . . . . 3 . 15 . 22 Machine Destruction 36 | . . . . 3 . 11 . 22 Programmers 4 | . . . . . . 4 . . Fabnet Peak Effective % . | . . . . . . . . . Robots Rewired 3 | . . . . . . 3 . . Allies Hacked 1 | . . . . . . 1 . . Hacks Repelled . | . . . . . . . . . Allies | -11 -10 -10 -8 -8 -8 -8 -7 -7 -------- Run | Yrd Mat Sub Mat Gar Mat Gar Fac Gar Total Allies 11 | . . . 7 . . 4 . . Largest Group 4 | . . . 4 3 . 3 3 . Highest-Rated Group 142 | . . . 90 48 . 142 30 . Highest-Rated Ally 142 | . . . 41 16 . 142 10 . Total Orders . | . . . . . . . . . Ally Attacks 78 | . . . 43 5 . 7 23 . Total Damage 2062 | . . . 1193 73 . 419 377 . Kills 19 | . . . 13 . . 3 3 . Allies Corrupted . | . . . . . . . . . Allies Melted . | . . . . . . . . . X0-1V1 Amusement Gains 121 | . 25 10 . 30 . 40 . 16 Good Acts 58 | . . 5 34 2 2 10 . 5 Bad Acts 48 | . . 6 24 4 2 8 3 1 Intel | -11 -10 -10 -8 -8 -8 -8 -7 -7 ------- Run | Yrd Mat Sub Mat Gar Mat Gar Fac Gar Active Infowar (turns) 1624 | . . . 866 . . . 83 675 Seismic 1624 | . . . 866 . . . 83 675 Robot Analysis Total . | . . . . . . . . . Derelict Logs Recovered . | . . . . . . . . . Drone Launches . | . . . . . . . . . Drone Recoveries . | . . . . . . . . . Exploration | -11 -10 -10 -8 -8 -8 -8 -7 -7 ------------- Run | Yrd Mat Sub Mat Gar Mat Gar Fac Gar Turns Passed 10923 | 356 1420 1798 2171 808 723 1998 524 1125 Spaces Moved 3993 | 169 700 485 690 340 280 772 197 360 Core 3 | 3 . . . . . . . . Treads 3787 | 166 700 485 487 340 280 772 197 360 Legs 203 | . . . 203 . . . . . Wheels . | . . . . . . . . . Hover . | . . . . . . . . . Flight . | . . . . . . . . . Fastest Speed 50 | 50 160 320 200 200 200 200 200 200 Average Speed 220 | 158 160 320 256 200 200 200 226 240 Slowest Speed 480 | 160 320 320 480 200 200 200 240 280 Overloaded Moves . | . . . . . . . . . Propulsion Burnouts . | . . . . . . . . . Robots Hopped . | . . . . . . . . . Potential Cave-ins 10 | . . . . . . . . 10 Cave-ins Triggered . | . . . . . . . . . Exploration Rate (%) 44 | 9 96 40 53 46 39 65 7 45 Regions Visited 8 Branch Regions 1 Pre-discovered Areas . | . . . . . . . . . Known Exits Taken 5 | . 1 1 1 . 1 . 1 . Unknown Exits Taken 1 | 1 . . . . . . . . Scrap Searched . | . . . . . . . . . Spaces Dug 8 | . 3 . 2 . . . 1 2 Terrain Destroyed 279 | . 3 13 59 116 . . 1 87 Melee 1 | . . . . . . . 1 . Projectile 37 | . 3 2 16 . . . . 16 AOE 241 | . . 11 43 116 . . . 71 Terrain Rammed . | . . . . . . . . . Walls Destroyed . | . . . . . . . . . Machines Disabled . | . . . . . . . . . Actions | -11 -10 -10 -8 -8 -8 -8 -7 -7 --------- Run | Yrd Mat Sub Mat Gar Mat Gar Fac Gar Total 5273 | 208 878 660 941 409 365 1046 248 518 Wait 404 | . 84 118 70 13 12 39 3 65 Move 3987 | 168 699 484 690 339 279 771 197 360 Hop . | . . . . . . . . . Pick Up 109 | 7 12 8 36 5 8 14 11 8 Fast Attach 23 | 7 3 . 2 1 2 5 . 3 Attach 45 | . 3 5 19 . 3 8 3 4 Detach 2 | . . . 2 . . . . . Swap 47 | . 6 6 8 5 5 7 8 2 Drop 102 | . 5 4 25 8 17 18 12 13 Fire 438 | 26 61 35 79 37 38 99 11 52 Melee 1 | . . . . . . . 1 . Ram . | . . . . . . . . . Kick 1 | . . . 1 . . . . . Crush 19 | . 5 . 9 . 1 1 2 1 Escape Stasis 16 | . . . . . . 6 . 10 Rewire 79 | . . . . 1 . 78 . . Trap . | . . . . . . . . . Miscellaneous . | . . . . . . . . . Route ------- -11/Scrapyard -10/Materials (discovered 6 exits: *Mat x3 / *Min x2 / *Sub) -10/Subcaves (discovered 3 exits: *Mat x2 / [*Rec]) -8/Materials (discovered 4 exits: *Fac x3 / Gar) -8/Garrison (discovered 3 exits: *Mat x3) -8/Materials (discovered 3 exits: *Fac x2 / Gar) -8/Garrison (discovered 3 exits: *Fac x3) -7/Factory (discovered 2 exits: Sto / Gar) -7/Garrison (discovered 2 exits: *Fac x2) History --------- Turn | Location | Event 8 | -11/Scrapyard | Discovered new exit (range 15) 357 | -11/Scrapyard | Entered Materials 358 | -10/Materials | Build established: Mutant 477 | -10/Materials | Discovered new exit (range 13) 613 | -10/Materials | Discovered new exit (range 16) 792 | -10/Materials | Discovered new exit (range 7) 1059 | -10/Materials | Identified exit to Subcaves 1059 | -10/Materials | Identified exit to Mines 1117 | -10/Materials | Identified exit to Materials 1513 | -10/Materials | Learned 2 Storage zone layouts 1530 | -10/Materials | Learned 2 Mines zone layouts 1596 | -10/Materials | Learned 2 Storage zone layouts 1668 | -10/Materials | Repaired Lgt. Treads 1696 | -10/Materials | Repaired Lgt. Treads 1760 | -10/Materials | Prayed at D.C.S.S. Altar Unit 1777 | -10/Materials | Entered Subcaves 1778 | -10/Subcaves | Approached by a straggling Scientist 1778 | -10/Subcaves | Identified exit to Materials 2076 | -10/Subcaves | A swath of the cavern ceiling suddenly collapsed 2905 | -10/Subcaves | Shifting Twisted Machinery released Battle Cannon 2905 | -10/Subcaves | Shifting Twisted Machinery released Sub. Machine Gun 3165 | -10/Subcaves | System corruption reached 10% 3366 | -10/Subcaves | X0-1V1 activates XOMVISION 3390 | -10/Subcaves | Discovered new exit (range 9) 3401 | -10/Subcaves | Core integrity fell below 50% 3423 | -10/Subcaves | Core integrity permanently improved by X0-1V1 (+350) 3463 | -10/Subcaves | A swath of the cavern ceiling suddenly collapsed 3575 | -10/Subcaves | Entered Materials 3575 | -8/Materials | Evolved 4 slots: Propulsion x2, Utility x2 4246 | -8/Materials | Central database locked down 4488 | -8/Materials | Repaired Lgt. Treads+ 4506 | -8/Materials | X0-1V1 sent you to a vault 4521 | -8/Materials | Repaired Sub. Shrapnel Launcher? 4893 | -8/Materials | Utility slot count permanently improved by X0-1V1 (+1) 5066 | -8/Materials | Discovered new exit (range 16) 5099 | -8/Materials | Build established: Scavenger-Mutant 5319 | -8/Materials | Identified exit to Factory 5319 | -8/Materials | X0-1V1 revealed exit location to -7/Factory 5411 | -8/Materials | X0-1V1 foreshadows a heat wave 5415 | -8/Materials | X0-1V1 revealed exit location to -7/Factory 5436 | -8/Materials | X0-1V1 activates XOMVISION 5461 | -8/Materials | X0-1V1 rewrote Fighter 3a IFF filter 5491 | -8/Materials | X0-1V1 announced a LAN party 5513 | -8/Materials | System corruption reached 10% 5532 | -8/Materials | X0-1V1 mutated your Utility slot to Weapon slot 5630 | -8/Materials | X0-1V1 redirected Transport squads to designated parking area 5654 | -8/Materials | Ambient heat levels rising (+10) 5661 | -8/Materials | X0-1V1 added 0b10 threat records associated with you (considerable) 5738 | -8/Materials | X0-1V1 activates XOMVISION 5744 | -8/Materials | X0-1V1 sent allied G-47 Trooper (x4) 5746 | -8/Materials | Identified exit to Garrison 5746 | -8/Materials | Entered Garrison 5746 | -8/Garrison | Accompanied by 3 allies 5747 | -8/Garrison | Identified exit to Materials 5790 | -8/Garrison | X0-1V1 rewrote G-47 Trooper IFF filter 5809 | -8/Garrison | Build established: Scavenger-Gunner 5817 | -8/Garrison | Triggered checkpoint 5890 | -8/Garrison | Garrison Relay disabled 5939 | -8/Garrison | Phase Generator disabled 6060 | -8/Garrison | Discovered exit to Materials (range 52) 6060 | -8/Garrison | Discovered exit to Materials (range 59) 6060 | -8/Garrison | Discovered exit to Materials (range 74) 6172 | -8/Garrison | Energy generation permanently improved by X0-1V1 (+15; -150 max core) 6192 | -8/Garrison | Triggered checkpoint 6212 | -8/Garrison | Triggered checkpoint 6256 | -8/Garrison | Destroyed 7 combat bots 6332 | -8/Garrison | Triggered checkpoint 6377 | -8/Garrison | Triggered checkpoint 6408 | -8/Garrison | Installed Relay Interface Framework 6554 | -8/Garrison | Entered Materials 6764 | -8/Materials | X0-1V1 added 0b10 threat records associated with you (considerable) 6838 | -8/Materials | Discovered exit to Factory (range 16) 6945 | -8/Materials | X0-1V1 sent you to a vault 6976 | -8/Materials | Found Hvy. Insulated Plating 7004 | -8/Materials | Expanded RIF knowledge: Threat Obfuscation 7046 | -8/Materials | Discovered exit to Factory (range 8) 7275 | -8/Materials | Identified exit to Garrison 7277 | -8/Materials | Entered Garrison 7439 | -8/Garrison | Triggered checkpoint 7496 | -8/Garrison | Garrison Relay disabled 7746 | -8/Garrison | X0-1V1 revealed exit location to -7/Factory 7867 | -8/Garrison | Triggered checkpoint 7897 | -8/Garrison | X0-1V1 activates XOMVISION 7959 | -8/Garrison | X0-1V1 sent hostile B-36 Bruiser (x2) 8134 | -8/Garrison | X0-1V1 revealed exit location to -7/Factory 8137 | -8/Garrison | Core integrity restored by X0-1V1 (+217) 8165 | -8/Garrison | X0-1V1 sent allied H-71 Marshal (x1) 8272 | -8/Garrison | Learned Factory security intel 8303 | -8/Garrison | Discovered exit to Factory (range 3) 8603 | -8/Garrison | Expanded RIF knowledge: Program Shield 8621 | -8/Garrison | Garrison Relay disabled 8687 | -8/Garrison | Triggered checkpoint 8791 | -8/Garrison | Triggered checkpoint 8847 | -8/Garrison | X0-1V1 sent hostile B-36 Bruiser (x1) 8875 | -8/Garrison | Garrison Relay disabled 8916 | -8/Garrison | Build established: Bothacker-Gunner 9275 | -8/Garrison | Entered Factory 9275 | -7/Factory | Accompanied by 3 allies 9275 | -7/Factory | Evolved 2 slots: Utility x2 9276 | -7/Factory | Identified exit to Storage 9298 | -7/Factory | Found Prototype Launcher 9303 | -7/Factory | Identified Rocket Array 9307 | -7/Factory | Found Rocket Array 9309 | -7/Factory | X0-1V1 redirected Transport squads to designated parking area 9311 | -7/Factory | Found Rocket Array 9408 | -7/Factory | X0-1V1 mutated your Propulsion slot to Utility slot 9675 | -7/Factory | First assault squad dispatched 9710 | -7/Factory | Build established: Bothacker-Tank 9799 | -7/Factory | Identified exit to Garrison 9799 | -7/Factory | Entered Garrison 10143 | -7/Garrison | Discovered new exit (range 10) 10157 | -7/Garrison | Triggered checkpoint 10333 | -7/Garrison | Phase Generator disabled 10428 | -7/Garrison | Garrison Relay disabled 10506 | -7/Garrison | Garrison Relay disabled 10510 | -7/Garrison | Garrison Relay disabled 10566 | -7/Garrison | Garrison Relay disabled 10619 | -7/Garrison | Identified exit to Factory 10619 | -7/Garrison | X0-1V1 revealed exit location to -7/Factory 10813 | -7/Garrison | Triggered checkpoint 10897 | -7/Garrison | Expanded RIF knowledge: Structural Interface 10924 | -7/Garrison | Self-destructed Last Messages --------------- 10663_ System corrupted: Heat flow error (+240). 10695_ XP0&JKC/J24A4XTM%TYTLGJO R 10772_ System corrupted: Matter fused (-10). 10798_ Detecting nearby RIF Installer. 10822_ Slug penetrates Wall. X0-1V1's Piety Tracker suddenly appears amidst shimmering waves of color. 10847_ Slug penetrates Wall. 10849_ System corrupted: Component data lost. 10850_ X0-1V1: "Let the electrons flow!" (+800 energy capacity) 10855_ X0-1V1 flashes the Relay Coupler [Behemoth] buffer. 10866_ System corrupted: Heat flow error (+244). 10888_ Triggered Alarm Trap. 10888_ An alarm sounds. Initiating installation procedure... 10897_ Expanded RIF knowledge: Structural Interface. 10905_ Slug penetrates Y-54 Guardian. 10905_ Y-54 Guardian Lgt. Treads blasted off. 10908_ Slug penetrates Y-54 Guardian. 10919_ Lgt. Nuclear Core destroyed. 10922_ Slammed into Y-54 Guardian. Map ----- +----------------------------------------------------+ | #%%*[ = ^ ##??????????????????????????? | | #[! [! = # ??????????????????????????? | | #% ########### #### #?????????????????????????? | | # *#???#%#???# #??# ?????????????????????????? | | # #???# #???# #??# #?????????????????????????? | | # ##??# #???# #??# #?????????????????????????? | | # ??? ???# #??# #?????????????????????????? | | # %#???###???# #?? #????????????????????????? | | #* #?????????# #?? #????????????????????????? | | #%[##????????# ?? !?????????????????????????? | | = #????????###??# #?????????????????????????? | | ############### #?????????????????????????? | | #?????????????????????????? | | # ############### #?????????????????????????? | | # #?????????????# #?????????????????????????? | | "?????????????# #?????????????????????????? | | "?????????????# #?????????????????????????? | | "?????????????# #?????????????????????????? | | "?????????????# #?????????????????????????? | | # #?????????????# #?????????????????????????? | | # #?????????????# #?????????????????????????? | | #?????????????# #??###????????????????????? | | ?????????????# #??# #????????????????????? | | ##????????????# #??# #####????????????????? | | # #??????########;#### """"#????????????????? | | # #?# %Y@ "#????????????????? | | # #??????########;# ## " ""#????????????????? | | ? ??????????????### ## #####????????????????? | | ? ????????????????# ## #????????????????????? | | ????????????????????# ####????????????????????? | | ????????????????????# #???????????????????????? | | ???????????????????? ???????????????????????? | | ???????????????????? ???????????????????????? | | ???????????????????? ???????????????????????? | | ????????????????????# ?????????????